{"text_format":"3","workbook":"xlsx","n_sheets":4,"sheets":["DOJ_CD","Magistrate Comm","NPA","Consolidated Pricing Schedule"],"not_rendered":{"images":4},"read":"whole","date_system":"1900"}

{"sheet":"DOJ_CD","index":0,"n_rows":11,"n_cols":11,"rows_kept":11,"merged":[[0,2,1,10],[10,0,10,9]]}
[null,null,"DEPARTMENT OF JUSTICE AND CONSTITUTIONAL  DEVELOPMENT"]
[]
["Item","Description","Unit Price (incl. VAT)","Sessions/Month","Year 1 (12 months)","Year 1 Pricing","Year 2 (12 months)","Year 2 Pricing","Year 3 (12 months)","Year 3 Pricing","Total (R)"]
[1,"Face to face counselling session.",null,110,1320,null,1320,null,1320,null,{"$f":"SUM(F4+H4+J4)","v":0}]
[2,"Group critical incident trauma debriefing session",null,4,48,null,48,null,48,null,{"$f":"SUM(F5+H5+J5)","v":0}]
[3,"Multiple Stress Management Group Session",null,6,72,null,72,null,72,null,{"$f":"SUM(F6+H6+J6)","v":0}]
[4,"Proactive wellness talk session",null,10,120,null,120,null,120,null,0]
[5,"Interactive workshop",null,2,24,null,24,null,24,null,0]
[6,"Admission to a rehabilitation centre",null,2,24,null,24,null,24,null,{"$f":"SUM(F9+H9+J9)","v":0}]
[7,"Telephonic and online counselling",null,70,840,null,840,null,840,null,{"$f":"SUM(F10+H10+J10)","v":0}]
["GRAND TOTAL",{"$nulls":9},{"$f":"SUM(K4:K10)","v":0}]

{"sheet":"Magistrate Comm","index":1,"n_rows":11,"n_cols":11,"rows_kept":11,"merged":[[0,2,1,10],[10,0,10,9]]}
[null,null,"MAGISTRATE COMMISSION"]
[]
["Item","Description","Unit Price (incl. VAT)","Sessions/Month","Year 1 (12 months)","Year 1 Pricing","Year 2 (12 months)","Year 2 Pricing","Year 3 (12 months)","Year 3 Pricing","Total (R)"]
[1,"Face to face counselling session.",null,20,240,null,240,null,240,null,{"$f":"SUM(F4+H4+J4)","v":0}]
[2,"Group critical incident trauma debriefing session",null,3,36,null,36,null,36,null,{"$f":"SUM(F5+H5+J5)","v":0}]
[3,"Multiple Stress Management Group Session",null,3,36,null,36,null,36,null,0]
[4,"Proactive wellness talk session",null,3,36,null,36,null,36,null,0]
[5,"Interactive workshop",null,1,12,null,12,null,12,null,0]
[6,"Admission to a rehabilitation centre",null,1,12,null,12,null,12,null,0]
[7,"Telephonic and online counselling",null,60,720,null,720,null,720,null,0]
["GRAND TOTAL",{"$nulls":9},{"$f":"SUM(K4:K10)","v":0}]

{"sheet":"NPA","index":2,"n_rows":11,"n_cols":11,"rows_kept":11,"merged":[[0,2,1,10],[10,0,10,9]]}
[null,null,"NATIONAL PROSECUTING AUTHORITY"]
[]
["Item","Description","Unit Price (incl. VAT)","Sessions/Month","Year 1 (12 months)","Year 1 Pricing","Year 2 (12 months)","Year 2 Pricing","Year 3 (12 months)","Year 3 Pricing","Total (R)"]
[1,"Face to face counselling session.",null,60,720,null,720,null,720,null,{"$f":"SUM(F4+H4+J4)","v":0}]
[2,"Group critical incident trauma debriefing session",null,3,36,null,36,null,36,null,{"$f":"SUM(F5+H5+J5)","v":0}]
[3,"Multiple Stress Management Group Session",null,10,120,null,120,null,120,null,0]
[4,"Proactive wellness talk session",null,10,120,null,120,null,120,null,0]
[5,"Interactive workshop",null,5,60,null,60,null,60,null,0]
[6,"Admission to a rehabilitation centre",null,1,12,null,12,null,12,null,0]
[7,"Telephonic and online counselling",null,50,600,null,600,null,600,null,0]
["GRAND TOTAL",{"$nulls":9},{"$f":"SUM(K4:K10)","v":0}]

{"sheet":"Consolidated Pricing Schedule","index":3,"n_rows":15,"n_cols":3,"rows_kept":15,"merged":[[0,1,0,2],[1,1,1,2],[2,1,2,2],[3,1,3,2],[4,1,4,2],[5,1,5,2],[6,0,6,1],[7,0,7,1],[8,0,8,1],[9,0,9,1],[10,0,10,1],[14,0,16,2]]}
[null,"          SUPPLY CHAIN MANAGEMENT"]
[null,"             Annexure B  Pricing schedule"]
["RFB No","RFB 01 2026"]
["RFB Title","Appointment of a service provider for the Employee Health and Wellness services for the Department of Justice and Constitutional Development, National Prosecuting Authority and the Magistrates Commission for a period of three (03) years."]
["RFB"]
["Name of Bidder:"]
["BID PRICE PER ENTITY",null,"TOTAL"]
["DEPARTMENT OF JUSTICE AND CONSTITUTIONAL  DEVELOPMENT",null,{"$f":"DOJ_CD!K11","v":0}]
["MAGISTRATE COMMISSION",null,{"$f":"'Magistrate Comm'!K11","v":0}]
["NATIONAL PROSECUTING AUTHORITY",null,{"$f":"NPA!K11","v":0}]
["TOTAL BID PRICE",null,{"$f":"SUM(C8:C10)","v":0}]
[]
["Clarification on Pricing Schedule"]
[]
["The number of sessions per month indicated in the Pricing Schedule is provided solely for purposes of bid evaluation and comparison. It does not constitute a guaranteed volume or minimum number of sessions to be procured. Payment during the contract period shall be based on the actual services utilized by the Department and participating stakeholders, at the applicable rates quoted by the appointed service provider."]